[Event "Fagernes Chess GM-Swiss 2024"]
[Site "Fagernes"]
[Date "2024.03.24"]
[Round "1.17"]
[White "Myagmarsuren, Evsuld"]
[Black "Sokolovsky, Yahli"]
[Result "0-1"]
[ECO "C47"]
[WhiteElo "2138"]
[BlackElo "2475"]
[Annotator "TA"]
[PlyCount "60"]
[EventDate "2024.03.25"]
[EventType "swiss"]
[EventCountry "NOR"]
[SourceTitle "playchess.com"]
[Source "ChessBase"]
[SourceQuality "1"]
[TimeControl "40/6000+30:2400+30"]

{[%evp 19,60,0,4,-36,-7,-10,-10,-39,-37,-55,-60,-67,-63,-54,-47,-56,-52,-110,-114,-118,-106,-157,-141,-160,-139,-186,-193,-190,-191,-1010,-980,-997,-964,-1060,-426,-1076,-972,-5798,-5798,-3044,-2656,-1035,-1022]} 1. e4 {[%emt 0:00:03]} e5 {[%emt 0:00:05]} 2. Nf3 {[%emt 0:00:08]} Nc6 {[%emt 0:00:04]} 3. Nc3 {[%emt 0:00:05]} Nf6 {[%emt 0:01:23]} 4. d4 {[%emt 0:00:05]} exd4 {[%emt 0:00:06]} 5. Nxd4 {[%emt 0:00:03]} Bb4 {[%emt 0:00:09]} 6. Nxc6 {[%emt 0:00:05]} bxc6 {[%emt 0:00:06]} 7. Bd3 {[%emt 0:00:07]} d5 {[%emt 0:00:06]} 8. exd5 {[%emt 0:00:04]} O-O {[%emt 0:00:08]} 9. O-O {[%emt 0:00:02]} cxd5 {[%emt 0:00:08]} 10. Bg5 {[%emt 0:00:04]} Be6 {[%emt 0:03:19]} 11. f4 {[%emt 0:09:40]} h6 {[%emt 0:26:20]} 12. Bh4 {[%emt 0:02:55]} c6 {[%emt 0:00:06]} 13. Kh1 {[%emt 0:06:17] The position is equal.} Be7 {[%emt 0:02:58]} 14. Re1 {[%emt 0:02:24] [#]} Ne4 $1 {[%emt 0:11:31]} 15. Nxe4 {[%emt 0:04:37]} (15. Bxe7 $2 Nf2+ 16. Kg1 Qb6 $17) 15... Bxh4 {[%emt 0:00:23]} 16. Ng3 {[%emt 0:00:05]} Rb8 {[%emt 0:13:16]} 17. Rb1 {[%emt 0:00:07]} Rb4 {[%emt 0:04:18]} 18. Qd2 {[%emt 0:02:44] [#]} ({White should play} 18. Rf1 $15) 18... Qb8 $1 $36 {[%emt 0:01:18][%csl LRb2,LRf4][%mdl 2048] Black is in control.} 19. f5 {[%emt 0:01:37]} Bd7 {[%emt 0:04:15]} (19... Rxb2 $2 20. Rxb2 Qxb2 21. fxe6 $18) 20. c3 {[%emt 0:00:26] Wards off c5} (20. b3 $142) 20... Rg4 {[%emt 0:01:05]} 21. Qe2 {[%emt 0:05:03]} Rg5 {[%emt 0:03:26][%cal Of8e8] Black is more active.} 22. f6 {[%emt 0:00:42]} (22. Qe5 $17 {might work better.}) 22... Bxg3 $19 {[%emt 0:03:52]} (22... gxf6 23. Nh5 Re5 24. Qf3 $15) 23. hxg3 {[%emt 0:00:23]} Qxg3 {[%emt 0:00:35]} 24. fxg7 $2 {[%emt 0:00:50]} (24. Qf3) 24... Re8 {[%emt 0:00:17] Black is clearly winning.} (24... Rxg7 25. Qf3 $17) 25. Qd2 {[%emt 0:00:47]} Rxe1+ {[%emt 0:08:32]} (25... Rxg7 26. Rxe8+ Bxe8 27. Rf1 $17) 26. Rxe1 {[%emt 0:00:44]} Rh5+ {[%emt 0:00:05]} (26... Rxg7 27. Re3 Qd6 28. Kg1 $11) 27. Kg1 {[%emt 0:00:08]} Rh2 {[%emt 0:00:12][%cal Og3h4] Threatens to win with ...Qh4!} (27... Kxg7 $2 28. Qe3 Qh2+ 29. Kf1 $17) 28. Bf5 {[%emt 0:18:14] [#]} Rxg2+ $3 {[%emt 0:00:17][%mdl 512]} 29. Qxg2 {[%emt 0:00:12]} Qxe1+ {[%emt 0:00:06]} 30. Kh2 {[%emt 0:00:09]} Bxf5 {[%emt 0:00:12] Weighted Error Value: White=0.77/Black=0.03 (flawless) .  Mistake:       	White=4     	---        Inaccurate:     	White=2     	Black=1      OK:         	White=3     	Black=5      Best:        	White=1     	Black=1      Strong:       	---       	Black=1} 0-1

[Event "Fagernes Chess GM-Swiss 2024"]
[Site "Fagernes"]
[Date "2024.03.24"]
[Round "1.18"]
[White "Hillarp Persson, Tiger"]
[Black "Eliseev, Sergey"]
[Result "1-0"]
[ECO "A05"]
[WhiteElo "2473"]
[BlackElo "2131"]
[Annotator "TA"]
[PlyCount "73"]
[EventDate "2024.03.25"]
[EventType "swiss"]
[EventCountry "NOR"]
[SourceTitle "playchess.com"]
[Source "ChessBase"]
[SourceQuality "1"]
[TimeControl "40/6000+30:2400+30"]

{[%evp 10,73,29,19,54,45,57,57,45,46,48,44,49,64,57,27,76,65,65,69,118,108,175,168,258,250,251,248,253,256,294,296,362,338,587,570,583,570,666,664,635,661,671,662,843,827,800,770,770,764,891,886,993,1002,959,683,615,706,770,735,780,779,770,763,751,631]} 1. Nf3 {[%emt 0:00:04]} d5 {[%emt 0:02:52]} 2. g3 {[%emt 0:00:06]} Nf6 {[%emt 0:02:55]} 3. Bg2 {[%emt 0:01:43]} c6 {[%emt 0:01:39]} 4. O-O {[%emt 0:07:32]} Bf5 {[%emt 0:03:54]} 5. d3 {[%emt 0:01:37]} Nbd7 {[%emt 0:00:25]} 6. Nh4 {[%emt 0:00:34]} Bg6 {[%emt 0:05:40]} 7. Nxg6 {[%emt 0:00:57]} hxg6 {[%emt 0:00:04]} 8. e4 {[%emt 0:00:43]} dxe4 {[%emt 0:01:23] White is slightly better.} 9. dxe4 {[%emt 0:00:08]} e5 {[%emt 0:00:44]} 10. Nd2 {[%emt 0:01:33]} Bc5 {[%emt 0:04:53]} 11. a4 {[%emt 0:02:28][%cal Ba2a4,Ba4a5][%mdl 32]} Qe7 {[%emt 0:07:03]} 12. a5 {[%emt 0:20:16]} Qe6 {[%emt 0:08:25]} (12... O-O $11) 13. Qe2 $16 {[%emt 0:02:54]} a6 {[%emt 0:20:45]} 14. Qc4 {[%emt 0:28:40]} Qg4 {[%emt 0:09:58] White leaves nothing to chance now.} (14... Qe7 $14) 15. Nf3 {[%emt 0:05:02]} Rh5 {[%emt 0:13:18] Prevents Ng5} (15... Qxe4 $16 16. Qxf7+ Kxf7 17. Ng5+ Kg8 18. Nxe4 (18. Bxe4 Nxe4 19. Nxe4 Be7 $16) 18... Nxe4 19. Bxe4 Nf6 20. Bxg6 Kf8) 16. Re1 $18 {[%emt 0:00:45][%cal Bf1e1,Be1e3,Be3d3][%mdl 32]} O-O-O {[%emt 0:05:20]} (16... Rb8 $142 17. Bd2 Nd5) 17. b4 $1 {[%emt 0:08:05]} (17. Qxf7 Nxe4 18. Be3 (18. Qxg7 $2 Bxf2+ 19. Kf1 Bxe1 $19) 18... Rf8 $11) 17... Ba7 {[%emt 0:00:30]} 18. Be3 {[%emt 0:00:09]} (18. Qxf7 $6 Nxe4 19. Be3 (19. Qxg7 $2 Bxf2+ 20. Kf1 Bxe1 $19) 19... Bxe3 20. Rxe3 Nd6 $16) 18... Bxe3 {[%emt 0:03:34]} 19. Rxe3 {[%emt 0:00:12]} Nd5 {[%emt 0:02:24]} 20. Rd3 {[%emt 0:02:58]} (20. exd5 $2 Qxc4 21. dxc6 Qxc6 $19) 20... N7f6 {[%emt 0:05:20]} 21. Re1 {[%emt 0:01:17] [#] h3 would now be deadly.} Rdh8 $2 {[%emt 0:00:04]} (21... Nc7 {was called for.} 22. Rxd8+ (22. Qxf7 Rxd3 23. cxd3 Qd7 $18) 22... Kxd8 23. Qxf7 Qd7 24. Qf8+ (24. Qxg6 Ne6 $11) 24... Nce8) 22. h4 {[%emt 0:10:40] White is clearly winning.} ({Weaker is} 22. h3 Rxh3 23. Kf1 (23. Bxh3 $2 {is the wrong capture.} Qxh3 24. Nh4 Ng4 $19) (23. Nxe5 $2 Qh5 $19) 23... Rh1+ 24. Ng1 (24. Bxh1 $2 Rxh1+ 25. Ke2 Nxe4 $19) 24... R8h2 25. Bxh1 Rxh1 $11) 22... Kb8 {[%emt 0:08:23]} 23. Nh2 {[%emt 0:02:30]} Qd7 {[%emt 0:01:30]} 24. exd5 {[%emt 0:00:22]} cxd5 {[%emt 0:00:22]} 25. Bxd5 {[%emt 0:00:56]} Rc8 {[%emt 0:00:46] [#]} 26. Bxf7 {[%emt 0:03:05]} Qe7 {[%emt 0:00:46]} (26... Rxc4 27. Rxd7) 27. Qb3 {[%emt 0:00:20]} e4 {[%emt 0:00:25]} 28. Rde3 {[%emt 0:00:13]} Rb5 {[%emt 0:00:35]} 29. c3 {[%emt 0:00:49]} g5 {[%emt 0:00:01]} 30. hxg5 {[%emt 0:00:40]} Rxg5 {[%emt 0:00:07]} 31. Nf3 {[%emt 0:00:59]} Rf5 {[%emt 0:00:21]} 32. Qe6 {[%emt 0:01:55]} Qxe6 {[%emt 0:01:20]} 33. Bxe6 {[%emt 0:00:08]} Rxf3 {[%emt 0:00:34]} 34. Bxc8 {[%emt 0:00:25]} Rxe3 {[%emt 0:00:07]} 35. Rxe3 {[%emt 0:00:06]} Kxc8 {[%emt 0:00:05]} 36. f3 {[%emt 0:01:21]} exf3 {[%emt 0:00:25]} 37. Rxf3 {[%emt 0:00:07] Weighted Error Value: White=0.17 (very precise) /Black=0.40.  Mistake:       	---       	Black=5      Inaccurate:     	White=1     	---        OK:         	White=13    	Black=3      Strong:       	White=1     	---} 1-0

[Event "Fagernes Chess GM-Swiss 2024"]
[Site "Fagernes"]
[Date "2024.03.24"]
[Round "1.19"]
[White "Southcott-Moyers, Indy"]
[Black "Koelle, Tobias"]
[Result "1/2-1/2"]
[ECO "D38"]
[WhiteElo "2120"]
[BlackElo "2460"]
[Annotator "TA"]
[PlyCount "82"]
[EventDate "2024.03.25"]
[EventType "swiss"]
[EventCountry "NOR"]
[SourceTitle "playchess.com"]
[Source "ChessBase"]
[SourceQuality "1"]
[TimeControl "40/6000+30:2400+30"]

{[%evp 11,82,28,32,2,39,11,10,17,16,18,20,20,16,13,15,6,11,0,22,11,8,12,9,0,0,0,0,-22,-18,-13,0,0,0,-13,0,-10,18,-18,0,-16,0,-25,-25,-18,-20,-23,-18,-25,-14,-24,0,0,0,-7,0,-32,-32,-32,14,0,0,0,0,0,0,0,0,0,0,0,0,0,26]} 1. d4 {[%emt 0:00:04]} Nf6 {[%emt 0:00:04]} 2. c4 {[%emt 0:01:08]} e6 {[%emt 0:00:31]} 3. Nf3 {[%emt 0:00:35]} d5 {[%emt 0:00:06]} 4. Nc3 {[%emt 0:01:39]} Bb4 {[%emt 0:00:05]} 5. cxd5 {[%emt 0:02:26]} exd5 {[%emt 0:00:02]} 6. Bg5 {[%emt 0:02:09]} Nbd7 {[%emt 0:00:25][%cal Bb8d7,Bd7f8,Bf8g6][%mdl 32]} 7. Qb3 {[%emt 0:05:39]} Qe7 {[%emt 0:20:53]} 8. a3 {[%emt 0:08:57]} Bxc3+ {[%emt 0:01:34]} 9. Qxc3 {[%emt 0:00:13]} h6 {[%emt 0:01:24]} 10. Bh4 {[%emt 0:06:17]} c6 {[%emt 0:00:39]} 11. Nd2 {[%emt 0:03:26]} Nf8 {[%emt 0:06:45]} 12. e3 {[%emt 0:03:32]} Ng6 {[%emt 0:00:12]} 13. Bg3 {[%emt 0:00:28]} Nh5 {[%emt 0:00:43]} 14. Qb4 {[%emt 0:08:56]} Qd7 {[%emt 0:12:16]} 15. Bd3 {[%emt 0:04:52]} Nxg3 {[%emt 0:00:32]} 16. hxg3 {[%emt 0:00:08]} Ne7 {[%emt 0:01:11]} 17. Nf3 {[%emt 0:03:56]} Qc7 {[%emt 0:05:25]} 18. Rc1 {[%emt 0:06:22]} O-O {[%emt 0:04:25]} 19. O-O {[%emt 0:03:00]} Bf5 {[%emt 0:00:36]} 20. Be2 {[%emt 0:03:48]} a5 {[%emt 0:04:00]} 21. Qc5 {[%emt 0:02:37]} a4 {[%emt 0:00:53]} 22. Ne5 {[%emt 0:01:35][%cal Bf3e5,Be5d3,Bd3c5][%mdl 32]} Rfe8 {[%emt 0:08:53]} 23. Rfd1 {[%emt 0:06:11]} Qb8 {[%emt 0:01:47]} 24. Bd3 {[%emt 0:05:11]} Bxd3 {[%emt 0:00:39]} 25. Nxd3 {[%emt 0:01:23]} Nf5 {[%emt 0:02:14]} 26. Qc2 {[%emt 0:01:56]} Nd6 {[%emt 0:00:36]} 27. Nc5 {[%emt 0:00:27]} Qa7 {[%emt 0:00:47]} 28. Re1 {[%emt 0:01:55]} Qa5 {[%emt 0:04:43]} 29. Re2 {[%emt 0:04:23]} Qb5 {[%emt 0:00:52]} 30. Rce1 {[%emt 0:01:01]} b6 {[%emt 0:02:11]} (30... h5 $5) 31. Nd3 {[%emt 0:00:33]} Rac8 {[%emt 0:00:31]} 32. Nb4 {[%emt 0:01:19]} Ne4 {[%emt 0:02:25]} 33. Qd3 {[%emt 0:03:37]} Qxd3 {[%emt 0:06:45]} 34. Nxd3 {[%emt 0:00:10]} c5 {[%emt 0:04:30]} (34... f6 $15) 35. Nf4 {[%emt 0:02:34] The position is equal.} Nf6 {[%emt 0:02:12]} 36. dxc5 {[%emt 0:00:49]} g5 {[%emt 0:00:42]} 37. Nd3 {[%emt 0:03:02]} bxc5 {[%emt 0:00:01]} 38. Rc2 {[%emt 0:01:27]} c4 {[%emt 0:05:22]} 39. Rec1 {[%emt 0:00:41]} Kg7 {[%emt 0:02:58]} 40. Nb4 {[%emt 0:00:47]} Re5 {[%emt 0:00:39]} 41. Rd1 {[%emt 0:49:47]} Kg6 {[%emt 0:47:21] Weighted Error Value: White=0.09 (flawless) /Black=0.07 (flawless) .  Mistake:       	---       	Black=1      Inaccurate:     	White=3     	Black=3      OK:         	White=16    	Black=19     Best:        	White=1     	---} 1/2-1/2

[Event "Fagernes Chess GM-Swiss 2024"]
[Site "Fagernes"]
[Date "2024.03.24"]
[Round "1.20"]
[White "Kvaloy, Aksel Bu"]
[Black "Fiskaaen, Martin Holten"]
[Result "1-0"]
[ECO "B62"]
[WhiteElo "2454"]
[BlackElo "2118"]
[Annotator "TA"]
[PlyCount "107"]
[EventDate "2024.03.25"]
[EventType "swiss"]
[EventCountry "NOR"]
[SourceTitle "playchess.com"]
[Source "ChessBase"]
[SourceQuality "1"]
[TimeControl "40/6000+30:2400+30"]

{[%evp 22,107,5,0,0,0,0,0,0,0,0,0,0,0,0,-22,-17,-44,8,8,28,25,39,37,69,0,13,11,37,0,0,0,0,0,0,-89,518,550,583,333,477,457,802,841,836,836,723,210,301,342,343,328,334,333,408,378,446,422,416,400,391,0,387,273,681,704,835,829,885,865,896,798,794,798,798,789,782,760,747,713,706,698,996,995,995,954,897,896]} 1. e4 {[%emt 0:00:10]} c5 {[%emt 0:00:11]} 2. Nf3 {[%emt 0:00:04]} d6 {[%emt 0:00:18]} 3. d4 {[%emt 0:00:05]} cxd4 {[%emt 0:00:21]} 4. Nxd4 {[%emt 0:00:04]} Nf6 {[%emt 0:00:27]} 5. Nc3 {[%emt 0:00:06]} Nc6 {[%emt 0:01:03]} 6. Bg5 {[%emt 0:00:15]} e6 {[%emt 0:00:15]} 7. Qd3 {[%emt 0:00:24]} Bd7 {[%emt 0:02:18] B62: Sicilian: Richter-Rauzer: 6...e6: Unusual White 7th moves.} 8. O-O-O {[%emt 0:00:14]} a6 {[%emt 0:01:36]} 9. Qg3 {[%emt 0:00:38]} h6 {[%emt 0:19:51]} 10. Be3 {[%emt 0:00:21]} Nxd4 {[%emt 0:00:24]} 11. Rxd4 {[%emt 0:02:06]} e5 {[%emt 0:01:58]} 12. Rb4 {[%emt 0:01:05]} b5 {[%emt 0:00:49]} 13. a3 $146 {[%emt 0:00:39]} ({Predecessor:} 13. Be2 Rc8 14. Bd2 Qc7 15. Bd3 Be6 16. Kb1 Be7 17. Qxg7 Rg8 18. Qxh6 Rg6 19. Qe3 {½-½ Lagarde,M (2647)-Mamedov,R (2673) EU-chT 23rd Terme Catez 2021 (9.3)}) 13... Rc8 {[%emt 0:12:53]} (13... Nh5 $5 14. Qf3 $8 Nf6 $14) 14. Be2 {[%emt 0:03:33]} Qc7 {[%emt 0:11:46]} 15. Bd3 {[%emt 0:00:32]} Nh5 {[%emt 0:02:57]} 16. Qf3 {[%emt 0:05:06]} (16. Qh4 $5 Nf6 $8 17. Kb1 $11) 16... Nf6 {[%emt 0:00:12]} 17. Rg1 {[%emt 0:12:03]} Be7 {[%emt 0:05:05]} 18. g4 {[%emt 0:01:52]} Be6 $1 {[%emt 0:03:32]} 19. Kb1 {[%emt 0:29:14]} Nd7 {[%emt 0:07:26]} (19... Qb7 $15) 20. Nd5 $11 {[%emt 0:06:34]} Bxd5 {[%emt 0:05:34]} 21. exd5 {[%emt 0:01:07]} Nc5 {[%emt 0:02:23]} 22. Qe2 {[%emt 0:01:36]} Kf8 {[%emt 0:11:16] [#]} 23. h4 {[%emt 0:11:57]} (23. Rc1 $1 $14) 23... Bxh4 {[%emt 0:10:54]} 24. Rh1 {[%emt 0:01:06]} Qd8 {[%emt 0:01:09]} 25. Bf5 {[%emt 0:12:01]} Rc7 {[%emt 0:01:04]} 26. f4 {[%emt 0:02:39]} Bg3 {[%emt 0:03:04]} 27. g5 {[%emt 0:10:17]} g6 {[%emt 0:02:59]} 28. Qf3 {[%emt 0:01:12]} (28. Bxg6 $11 {remains equal.} exf4 (28... fxg6 29. fxe5 Bxe5 30. gxh6 $17) 29. Bxf4 Bxf4 30. Rxf4 Qxg5 31. Rxf7+ (31. Rg4 Qe5 $16) 31... Rxf7 32. Bxf7) 28... gxf5 $2 {[%emt 0:00:55][%mdl 8192]} (28... Bxf4 $17 {and life is bright.} 29. Bxf4 exf4 30. Rxf4 (30. gxh6 Qg5 $19) 30... Qxg5 (30... gxf5 31. Rxf5 Qe7 32. g6 $17) 31. Bxg6 Qxg6) 29. Qxg3 $18 {[%emt 0:00:39]} Ne4 {[%emt 0:01:14]} 30. Qh3 {[%emt 0:00:54]} exf4 {[%emt 0:00:50]} (30... Qd7 {keeps fighting.} 31. gxh6 Ke8) 31. Bxf4 {[%emt 0:01:49]} Nf2 {[%emt 0:00:40]} (31... Nxg5 $142 32. Qxf5 Kg7) 32. Qh2 $18 {[%emt 0:00:10]} ({Not} 32. Qxf5 Nxh1 33. gxh6 Ng3 $14 (33... Re7 $2 34. Rb3 $18)) 32... Nxh1 {[%emt 0:00:28]} 33. Bxd6+ {[%emt 0:00:05]} Re7 {[%emt 0:00:22]} 34. gxh6 $2 {[%emt 0:01:19]} (34. Bxe7+ Qxe7 35. Qxh1 Kg7 36. gxh6+ Rxh6 37. Qg1+ Kf8 $11) (34. Qe5 {[%cal Re5h8]} Rh7 35. Rh4 (35. Bxe7+ Qxe7 36. Qxf5 Kg7 $16)) 34... Nf2 {[%emt 0:00:41]} (34... Ng3 {was worth a try.} 35. Bxg3 (35. Qxg3 Rxh6 36. Bxe7+ Qxe7 $16) (35. Bxe7+ Qxe7 36. Qxg3 Rxh6 $16) 35... Qxd5) 35. Bxe7+ $18 {[%emt 0:00:43]} Qxe7 {[%emt 0:00:25]} 36. Qxf2 {[%emt 0:00:18]} Rxh6 {[%emt 0:00:34]} 37. Qxf5 {[%emt 0:00:17]} Qc5 {[%emt 0:00:34]} 38. Rf4 {[%emt 0:00:46]} Qc7 {[%emt 0:00:19]} 39. Rf1 {[%emt 0:00:56]} a5 {[%emt 0:00:39]} 40. Qe4 {[%emt 0:02:08]} Qc4 {[%emt 0:00:32]} 41. Qf5 {[%emt 0:09:03]} Qc7 $1 {[%emt 0:03:58]} 42. Rg1 {[%emt 0:03:28]} Qd8 $2 {[%emt 0:10:00]} (42... Qc5 43. Rf1 Qc7) 43. Qe5 $18 {[%emt 0:03:30]} Rf6 {[%emt 0:04:14]} 44. Qh5 {[%emt 0:04:53]} Ke7 {[%emt 0:05:18]} 45. Re1+ {[%emt 0:00:45]} Kd6 {[%emt 0:02:05]} 46. Qe5+ {[%emt 0:01:23]} Kd7 {[%emt 0:00:19]} 47. d6 {[%emt 0:00:38]} Kc6 {[%emt 0:00:59]} 48. Qe4+ {[%emt 0:01:54]} Kb6 {[%emt 0:00:35]} 49. Qd4+ {[%emt 0:01:05]} Kc6 {[%emt 0:00:13]} 50. Re7 {[%emt 0:09:48]} Rxd6 {[%emt 0:04:51]} 51. Qe4+ {[%emt 0:00:20]} Kb6 {[%emt 0:00:26]} 52. Qb7+ {[%emt 0:00:40]} (52. Rxf7 Rd1+ 53. Ka2 Qd5+ 54. Qxd5 Rxd5 $14) 52... Kc5 {[%emt 0:00:06]} 53. Rc7+ {[%emt 0:00:25]} ({Weaker is} 53. Rxf7 Rd1+ 54. Ka2 Qd5+ 55. b3 Qxb7 56. Rxb7 a4 $14) 53... Kd4 {[%emt 0:00:09]} 54. Rxf7 {[%emt 0:00:24]} 1-0

[Event "Fagernes Chess GM-Swiss 2024"]
[Site "Fagernes"]
[Date "2024.03.24"]
[Round "1.21"]
[White "Rounaiv Rana"]
[Black "Willow, Jonah B"]
[Result "0-1"]
[ECO "E32"]
[WhiteElo "2099"]
[BlackElo "2446"]
[Annotator "TA"]
[PlyCount "50"]
[EventDate "2024.03.25"]
[EventType "swiss"]
[EventCountry "NOR"]
[SourceTitle "playchess.com"]
[Source "ChessBase"]
[SourceQuality "1"]
[TimeControl "40/6000+30:2400+30"]

{[%evp 13,50,26,31,36,35,0,0,-39,-35,-43,-39,-42,-48,-52,-54,-75,-72,-483,-436,-519,-503,-514,-546,-516,-515,-1437,-1441,-1408,-1403,-1629,-1619,-29995,-29996,-29996,-29997,-29997,-29998,-29998,-29997]} 1. d4 {[%emt 0:00:03]} Nf6 {[%emt 0:02:11]} 2. c4 {[%emt 0:00:09]} e6 {[%emt 0:00:49][%cal Be7e6,Be6e5,Be5f4][%mdl 32]} 3. Nc3 {[%emt 0:00:06]} Bb4 {[%emt 0:00:05]} 4. Qc2 {[%emt 0:00:09]} O-O {[%emt 0:00:46]} 5. e4 {[%emt 0:00:07]} d6 {[%emt 0:03:10]} 6. Bd3 {[%emt 0:00:59]} Nc6 {[%emt 0:00:42]} 7. Nf3 {[%emt 0:00:27]} e5 {[%emt 0:00:55]} 8. d5 {[%emt 0:00:28]} Ne7 {[%emt 0:00:41]} 9. Bg5 {[%emt 0:10:49]} Ng6 {[%emt 0:11:29]} 10. Nh4 {[%emt 0:14:48] The position is equal.} Nf4 {[%emt 0:07:26]} 11. Bxf4 {[%emt 0:06:36]} exf4 {[%emt 0:01:01]} 12. Nf3 {[%emt 0:06:36]} Re8 {[%emt 0:05:45]} 13. O-O {[%emt 0:09:20]} Bg4 {[%emt 0:01:33]} 14. Nd2 {[%emt 0:08:18]} f3 {[%emt 0:03:34] Black is more active.} 15. h3 $2 {[%emt 0:02:01][%mdl 8192]} (15. Nxf3 $17 Bxf3 16. gxf3) 15... fxg2 $19 {[%emt 0:27:12]} 16. Kxg2 {[%emt 0:00:12] [#]} Bxh3+ {[%emt 0:10:36][%mdl 512]} 17. Kxh3 {[%emt 0:00:27] Hoping for f4.} Qd7+ {[%emt 0:00:10]} 18. Kh2 {[%emt 0:02:48] [#] aiming for Be2.} Re5 $1 {[%emt 0:01:27]} ({Worse is} 18... Ng4+ 19. Kg2 $16) 19. f3 {[%emt 0:13:24]} (19. Be2 $142 Ng4+ 20. Kg3) 19... Bc5 {[%emt 0:03:45]} (19... Rh5+ 20. Kg2 $11) 20. Rh1 {[%emt 0:07:37] [#]} Ng4+ $1 {[%emt 0:02:09][%mdl 512]} 21. Kg3 {[%emt 0:00:13] [#]} (21. Kg2 Ne3+) 21... Rg5 $1 {[%emt 0:03:57] ( -> ...Nf2+)} 22. Qa4 {[%emt 0:06:07]} (22. Rh4 Bf2+) 22... Nf2+ {[%emt 0:00:28] Black mates.} 23. Kh4 {[%emt 0:00:39] [#]} Qg4+ $3 {[%emt 0:00:56][%mdl 512]} 24. fxg4 {[%emt 0:00:10]} Rxg4+ {[%emt 0:00:03]} 25. Kh5 {[%emt 0:00:09]} Be3 {[%emt 0:01:15] White did not feel at home in the position after the opening.   Weighted Error Value: White=1.32/Black=0.00 (flawless) .  Loses game:     	White=1     	---        Mistake:       	White=1     	---        Inaccurate:     	White=2     	---        OK:         	White=1     	Black=4      Best:        	White=2     	Black=4      Strong:       	---       	Black=1      Brilliant:      	---       	Black=1} 0-1